Cogmind - Beta 16 @@@ ROGUE MODE // 2025.11.20 @ 17:18:50 Player: Mozco Result: Self-destructed Performance ------------- Evolutions (6) 3000 Regions Visited (14) 2800 Robots Destroyed (225) 1125 Value Destroyed (8345) 8345 Prototype IDs (62) 1240 Alien Tech Used (1) 200 Bonus (643) 643 TOTAL SCORE: 17353 Bonus ------- High Alert Combat Kills 702 Follower Combat Kills 505 Registered with UFD 300 Friendly Fire -864 Cogmind --------- Core Integrity 898/1150 Matter 242/300 Energy 4/575 System Corruption 14% Temperature Cool (13) Movement Treading (320) Ox2 Location -4/Factory Parts ------- > --- POWER (2) -------- Cooled Fission Core Antimatter Reactor > --- PROPULSION (6) --- Improved Treads Enhanced Armored Medium Treads > --- UTILITY (9) ------ Advanced Heat Sink Huge Storage Unit Experimental Optical Array Advanced Signal Interpreter Improved Force Field Experimental Hacking Suite > --- WEAPON (2) ------- Wave Gun Hellfire Missile Launcher > --- INVENTORY (25) --- Antimatter Reactor Armored Medium Treads Biometal Medium Treads Advanced Energy Well (500) Matter Compressor (133) Deep Structural Scanner Advanced Sensor Array Improved Particle Charger Particle Accelerator Improved Weapon Cycler Transmission Jammer Experimental Core Shielding Layered Heavy Armor Plating Graphene Brace Improved Thermal Shield EM Shield Mapping Drone Bay (3/3) Hacking Drone Bay (1/1) Transdimensional Reconstructor Phase Gun Matter Neutralizer Heavy Gauss Cannon Hellfire Missile Launcher Hellfire Missile Launcher Peak State ------------ > --- POWER ------------ Cooled Fission Core Cooled Fission Core Meta Core > --- PROPULSION ------- Armored Treads Armored Treads Medium Treads Medium Treads Enhanced Armored Medium Treads Biometal Medium Treads > --- UTILITY ---------- Huge Storage Unit Experimental Optical Array Improved Sensor Array Advanced Signal Interpreter Surveybot 17 Chip Weapon Cycler Graphene Brace A0-MCA's Component Scanner System Restoration Module Hacking Drone Bay Rainbow Chip > --- WEAPON ----------- Matter Neutralizer Matter Neutralizer Tiamat Missile Launcher Gravity Flail > --- INVENTORY -------- Cooled Fission Core Cooled Fission Core Advanced Treads Biometal Medium Treads Improved Cooling System Matter Compressor Deep Structural Scanner Advanced Terrain Scanner Improved Particle Charger Transmission Jammer Improved Shock Absorption System Shield Generator System Restoration Module System Restoration Module Mapping Drone Bay Heavy Plasma Cannon Advanced Plasma Cannon Advanced Plasma Cannon Matter Neutralizer Matter Neutralizer Hellfire Missile Launcher Hellfire Missile Launcher Hellfire Missile Launcher Gravity Flail Gravity Flail [Rating: 170] Favorites ----------- Power Cooled Fission Core Engine Ion Engine Power Core Cooled Fission Core Reactor Fusion Reactor Propulsion Armored Treads Treads Armored Treads Wheel Armored Huge Wheel Flight Unit VTOL Module Utility Huge Storage Unit Device Improved Sensor Array Storage Huge Storage Unit Processor A0-MCA's Component Scanner Hackware Hacking Suite Protection Scrap Shield Weapon Matter Neutralizer Energy Gun Medium Laser Energy Cannon Matter Neutralizer Ballistic Gun Subdweller Machine Gun Ballistic Cannon Heavy Flak Cannon Launcher Tiamat Missile Launcher Impact Weapon Gravity Flail Special Melee Weapon Datajack Build | -11 -10 -10 -9 -6 -6 -6 -6 -5 -5 -5 -5 -5 -4 -4 ------- Run | Yrd Mat Sub Scr Fac Low Low Zio Pro Fac Upp Upp Zhi Pro Fac Slots Evolved 12 | . . . . 8 . . . . 2 . . . . 2 Power 1 | . . . . . . . . . 1 . . . . . Propulsion 4 | . . . . 2 . . . . . . . . . 2 Utility 7 | . . . . 6 . . . . 1 . . . . . Weapon . | . . . . . . . . . . . . . . . Parts Attached 157 | 6 10 14 19 48 1 . 1 . 19 4 . 2 1 32 Power 16 | 1 1 1 3 2 . . . . 4 . . 1 . 3 Engine 7 | 1 1 1 3 1 . . . . . . . . . . Core 6 | . . . . 1 . . . . 4 . . . . 1 Reactor 3 | . . . . . . . . . . . . 1 . 2 Propulsion 42 | 2 1 6 3 20 . . 1 . 4 . . . . 5 Treads 29 | 2 1 2 . 15 . . . . 4 . . . . 5 Leg . | . . . . . . . . . . . . . . . Wheel 11 | . . 4 1 5 . . 1 . . . . . . . Hover . | . . . . . . . . . . . . . . . Flight 2 | . . . 2 . . . . . . . . . . . Utility 67 | 1 6 3 6 19 1 . . . 8 1 . 1 . 21 Device 38 | . 1 2 3 11 1 . . . 6 1 . . . 13 Storage 5 | 1 3 . . . . . . . . . . . . 1 Processor 7 | . . . 1 3 . . . . 1 . . . . 2 Hackware 4 | . . . . 1 . . . . 1 . . . . 2 Protection 13 | . 2 1 2 4 . . . . . . . 1 . 3 Artifact . | . . . . . . . . . . . . . . . Weapon 32 | 2 2 4 7 7 . . . . 3 3 . . 1 3 Energy Gun 6 | 2 1 1 . . . . . . . . . . . 2 Energy Cannon 12 | . . 2 1 4 . . . . 2 2 . . 1 . Ballistic Gun 6 | . 1 1 4 . . . . . . . . . . . Ballistic Cannon 2 | . . . 1 . . . . . . . . . . 1 Launcher 4 | . . . . 3 . . . . . 1 . . . . Special Weapon . | . . . . . . . . . . . . . . . Impact Weapon 1 | . . . . . . . . . 1 . . . . . Slashing Weapon . | . . . . . . . . . . . . . . . Piercing Weapon . | . . . . . . . . . . . . . . . Special Melee Weapon 1 | . . . 1 . . . . . . . . . . . Unidentified Prototypes 3 | . . . . . . . . . . . . 1 . 2 Parts Lost 45 | . . 7 . 20 . . . . 2 . 2 1 2 11 Power 7 | . . 1 . 2 . . . . 2 . 1 . 1 . Propulsion 15 | . . 2 . 7 . . . . . . . . 1 5 Utility 17 | . . 2 . 9 . . . . . . 1 1 . 4 Weapon 6 | . . 2 . 2 . . . . . . . . . 2 Highest Loss Streak 10 | . . 3 . 10 . . . . 1 . 1 1 1 5 To Critical Strikes . | . . . . . . . . . . . . . . . Average Backups 17 | . 6 6 17 22 25 25 24 25 23 24 23 23 24 23 Power 1 | . . . 1 2 4 4 4 4 1 1 1 1 1 . Propulsion 1 | . . 2 . 1 2 2 2 3 2 2 2 1 1 1 Utility 8 | . 2 . 10 10 10 10 9 9 10 12 12 12 13 15 Weapon 5 | . 2 1 3 6 9 9 9 9 9 8 8 8 7 5 Tool/Special . | . . . . . . . . . . . . . . . Unused Backups 35 | . 3 3 8 3 . . 2 . 6 . . . 1 9 Power 4 | . . . 2 . . . . . . . . . . 2 Propulsion 3 | . 2 . . 1 . . . . . . . . . . Utility 12 | . . 2 3 1 . . 1 . 2 . . . . 3 Weapon 13 | . . 1 3 1 . . 1 . 3 . . . 1 3 Tool/Special 3 | . 1 . . . . . . . 1 . . . . 1 Average Slot Usage (%) 91 | . 98 85 79 85 100 100 98 100 99 100 100 96 98 94 Engine 6 | . 14 14 12 3 . . . . . . . . . . Core 4 | . . . . 2 5 5 5 5 12 14 13 7 5 6 Treads 20 | . 27 23 . 14 27 27 26 27 24 23 23 25 21 26 Wheel 3 | . . 4 11 5 . . . . . . . . . . Device 12 | . 1 2 7 16 22 22 22 22 19 19 19 19 20 19 Storage 5 | . 14 2 10 5 5 5 5 5 4 4 4 5 5 4 Processor 10 | . . . 3 8 22 22 22 22 20 23 23 20 20 13 Protection 4 | . 11 9 2 9 . . . . . . . 4 5 3 Energy Gun 2 | . 18 3 . . . . . . . . . . . 1 Energy Cannon 8 | . . 11 8 9 11 11 10 11 7 6 9 7 5 7 Ballistic Gun 5 | . 9 12 11 1 . . . . . . . . . . Launcher 1 | . . . . 1 5 5 4 5 3 2 . . 4 . Impact Weapon 1 | . . . . . . . . . 3 4 4 5 5 1 Peak Build Rating 170 | 6 8 14 41 127 119 118 124 119 170 149 145 148 147 158 Average Rating 78 | 4 7 11 26 81 118 118 117 119 159 144 141 139 140 135 On Entrance 91 | . 6 8 13 41 119 118 118 119 119 150 142 131 147 135 Avg Prop Armor Cover (%) 14 | . . 13 20 12 . . 11 . . . . . . 6 Naked Turns 25 | . . . 25 . . . . . . . . . . . Heaviest Build 159 | 14 89 97 105 140 120 120 120 120 155 143 146 141 141 159 Greatest Support 190 | 40 40 40 28 146 131 131 131 131 166 148 133 145 145 190 Greatest Overweight (x) 28 | . 2 4 28 7 . . 5 . 1 1 1 . 1 1 Average Overweight (x) . | . . . 2 2 . . . . . . . . . . Largest Inventory Capacity 25 | 8 25 25 25 25 25 25 25 25 25 25 25 25 25 25 Average Capacity 19 | 6 11 8 20 25 25 25 25 25 25 25 25 25 25 25 Most Carried 25 | 1 10 17 25 25 25 25 25 25 25 25 25 25 25 25 Average Carried 18 | . 6 6 18 22 25 25 24 25 23 24 24 24 25 24 Final Capacity 25 | 8 20 25 25 25 25 25 25 25 25 25 25 25 25 25 Final Carried 25 | 1 10 15 25 25 25 25 25 25 25 25 25 25 25 25 Class Distribution -------------------- 30% | Mutant 22% | Scavenger-Mutant 15% | Scavenger-Skirmisher 12% | Scavenger-Assassin 11% | Subdweller-Mutant 4% | Assassin Dominant Class ---------------- Mutant | -10/Materials Subdweller-Mutant | -10/Subcaves Mutant | -9/Scraptown Mutant | -6/Factory Scavenger-Skirmisher | -6/Lower Caves Scavenger-Skirmisher | -6/Lower Caves Scavenger-Skirmisher | -6/Zion Scavenger-Skirmisher | -5/Proximity Caves Scavenger-Assassin | -5/Factory Scavenger-Assassin | -5/Upper Caves Scavenger-Assassin | -5/Upper Caves Scavenger-Mutant | -5/Zhirov Assassin | -4/Proximity Caves Scavenger-Mutant | -4/Factory Resources | -11 -10 -10 -9 -6 -6 -6 -6 -5 -5 -5 -5 -5 -4 -4 ----------- Run | Yrd Mat Sub Scr Fac Low Low Zio Pro Fac Upp Upp Zhi Pro Fac Matter Collected 6815 | 199 192 412 690 1836 238 232 115 122 763 379 2 245 193 1197 Remotely . | . . . . . . . . . . . . . . . Salvage Created 9059 | . 632 758 . 2195 46 60 . 338 1676 143 69 337 23 2782 Parts 365 | . 33 45 . 103 . 8 . 14 54 7 1 3 3 94 Haulers Intercepted 9 | . 2 . . 4 . . . . 3 . . . . . Recyclers Shooed 23 | . 4 . . 7 . . . . 3 . . . . 9 Parts Field Recycled . | . . . . . . . . . . . . . . . Retrieved Matter . | . . . . . . . . . . . . . . . Parts Self-Destructed 55 | . . 15 . . 4 4 . 21 . 5 1 3 2 . Prevented 1 | . . . . . . . . 1 . . . . . . Parts Restored . | . . . . . . . . . . . . . . . Kills | -11 -10 -10 -9 -6 -6 -6 -6 -5 -5 -5 -5 -5 -4 -4 ------- Run | Yrd Mat Sub Scr Fac Low Low Zio Pro Fac Upp Upp Zhi Pro Fac Combat Hostiles Destroyed 154 | . 11 15 . 30 . 6 . 15 26 5 1 . 8 37 Melee 2 | . . . . . . . . . . . . . . 2 Guns 24 | . 11 8 . 1 . . . . . . . . . 4 Cannons 51 | . . 5 . 10 . 1 . 3 12 2 1 . 1 16 AOE 64 | . . . . 16 . 5 . 12 12 3 . . 7 9 Classes Destroyed 24 | . 8 5 . 8 . . . 2 . . . . . 1 Worker 20 | . . . . 8 . . . . 5 . . . . 7 Builder 7 | . . . . 4 . . . . 1 . . . . 2 Tunneler 3 | . 2 . . . . . . . . . . . . 1 Hauler 9 | . 2 . . 4 . . . . 3 . . . . . Recycler 18 | . 1 . . 5 . . . . 5 . . . . 7 Minesweeper 1 | . . . . . . . . 1 . . . . . . Mechanic 2 | . 1 . . . . . . . 1 . . . . . Operator 3 | . 2 . . . . . . . 1 . . . . . Drone 2 | . . . . . . . . 2 . . . . . . Turret 1 | . . 1 . . . . . . . . . . . . Watcher 6 | . 1 . . 2 . . . . 2 . . . . 1 Swarmer 39 | . 3 . . 6 . 6 . 6 6 4 . . 8 . Saboteur 1 | . . . . . . . . . . . . . . 1 Grunt 53 | . 8 2 . 7 . . . 6 8 1 . . . 21 Brawler 1 | . . . . 1 . . . . . . . . . . Protector 1 | . . . . 1 . . . . . . . . . . Sentry 8 | . . 1 . . . . . 1 1 . 1 . . 4 Specialist 2 | . . . . 2 . . . . . . . . . . Hunter 11 | . . . . 7 . . . . 4 . . . . . Programmer 20 | . . . . 4 . . . . 7 . . . . 9 Heavy 4 | . . . . 2 . . . . . . . . . 2 Enhanced Grunt 1 | . . . . . . . . . . . . 1 . . Artisan 2 | . . 2 . . . . . . . . . . . . Cobbler 1 | . . 1 . . . . . . . . . . . . Subdweller 12 | . . 12 . . . . . . . . . . . . Decomposer 4 | . . . . . 3 . . 1 . . . . . . Best Kill Streak 15 | . 4 3 . 15 . 3 . 6 11 4 1 . 4 13 Combat Bots Only 8 | . 3 3 . 8 . 3 . 6 6 4 1 . 4 7 Max Kills in Single Turn 5 | . 1 1 . 4 1 3 . 4 4 3 1 1 2 5 Gunslinging . | . . . . . . . . . . . . . . . Exploded 4 | . . . . 4 . 3 . 4 2 3 . . 2 2 Melee 1 | . . . . . . . . . . . . . . 1 Uniques/NPCs Destroyed . | . . . . . . . . . . . . . . . Combat | -11 -10 -10 -9 -6 -6 -6 -6 -5 -5 -5 -5 -5 -4 -4 -------- Run | Yrd Mat Sub Scr Fac Low Low Zio Pro Fac Upp Upp Zhi Pro Fac Hostile Shots Fired 971 | . 75 92 . 259 . 8 . 28 144 11 20 . 15 319 Missed 302 | . 24 34 . 95 . 6 . 9 45 3 6 . 4 76 Hits 669 | . 51 58 . 164 . 2 . 19 99 8 14 . 11 243 Melee 4 | . . . . . . . . . . . . . . 4 Projectile 665 | . 51 58 . 164 . 2 . 19 99 8 14 . 11 239 AOE 4 | . . 2 . . . . . . 2 . . . . . Critical Strikes 39 | . 1 1 . 10 . . . 1 3 . 1 . . 22 Actively Blocked 16 | . . . . . . . . . 3 . 1 . . 12 Part Disruptions 1 | . . . . . . . . . 1 . . . . . Damage Taken 12342 | . 562 1068 . 3534 . 51 . 426 1743 123 210 386 269 3970 Core 1061 | . 100 117 . 326 . 5 . 65 110 15 39 24 8 252 Absorbed by Shields 1899 | . . . . 33 . . . . 204 10 76 133 . 1443 Redirected to Shielding 135 | . 46 55 . . . . . . . . . 16 5 13 Ignored by Resistances 793 | . . . . 240 . . . . . . . . . 553 Regen/Repaired (Parts) 809 | . 40 . . . . . . . 546 . . . . 223 Core Remaining (%) 61 | 100 . . 13 . . . . 53 . . . . 80 . Volleys Fired 540 | . 79 82 . 102 4 5 . 23 71 10 7 18 7 132 Largest 3 | . 2 2 . 2 2 2 . 2 3 2 2 2 1 2 Hottest 256 | . 100 110 . 210 210 210 . 210 256 203 203 203 105 203 Shots Fired 916 | . 158 142 . 163 9 8 . 36 106 14 14 35 7 224 Gun 337 | . 158 94 . 30 . . . . . . . . . 55 Cannon 526 | . . 48 . 116 9 6 . 28 92 13 14 35 2 163 Launcher 53 | . . . . 17 . 2 . 8 14 1 . . 5 6 Special . | . . . . . . . . . . . . . . . Kinetic 154 | . 50 58 . 30 . . . . . . . . . 16 Thermal 709 | . 108 84 . 116 9 6 . 28 92 13 14 35 2 202 Explosive 53 | . . . . 17 . 2 . 8 14 1 . . 5 6 Electromagnetic . | . . . . . . . . . . . . . . . Robot Hit Streak 21 | . 14 21 . 12 4 8 . 6 9 7 3 8 2 21 Robot Miss Streak 7 | . 5 3 . 6 7 1 . 5 4 2 3 4 1 6 Penetration Max 1 | . . . . 1 . . . . . . . . . . Secondary Targets 3 | . 3 . . . . . . . . . . . . . Max Gunslinging Chain 1 | . 1 . . . . . . . . . . . . . Shots Hit Robots 560 | . 94 78 3 104 5 5 . 15 63 8 4 18 2 161 Core Hits 353 | . 43 28 . 92 2 6 . 27 57 5 2 7 7 77 Critical Kills 12 | . . 2 . 4 . . . . 1 . . . . 5 Critical Parts Destroyed 7 | . . 1 . . . . . . 2 . . . . 4 Critical Strikes 35 | . 9 4 . 4 . . . . 3 . . . . 15 Burn 13 | . 9 . . . . . . . . . . . . 4 Meltdown 11 | . . 2 . 4 . . . . 1 . . . . 4 Destroy 2 | . . 2 . . . . . . . . . . . . Blast 2 | . . . . . . . . . . . . . . 2 Smash 7 | . . . . . . . . . 2 . . . . 5 Melee Attacks 31 | . . . 3 . . . . . 12 . . . . 16 Impact 28 | . . . . . . . . . 12 . . . . 16 Slashing . | . . . . . . . . . . . . . . . Piercing . | . . . . . . . . . . . . . . . Sneak Attacks 5 | . . . 3 . . . . . 2 . . . . . Combat Hostiles . | . . . . . . . . . . . . . . . Follow-up Attacks . | . . . . . . . . . . . . . . . Damage Inflicted 28221 | . 1062 1366 . 6114 195 786 . 1885 5194 658 157 792 1149 8863 Guns 3227 | . 1062 825 . 432 . . . . . . . . . 908 Cannons 11540 | . . 541 . 2829 195 195 . 441 1962 234 157 792 71 4123 Explosions 12353 | . . . . 2845 . 591 . 1444 2974 424 . . 1070 3005 Melee 978 | . . . . . . . . . 258 . . . . 720 Ramming 123 | . . . . 8 . . . . . . . . 8 107 Kinetic 1554 | . 232 520 . 432 . . . . . . . . . 370 Thermal 13807 | . 830 846 . 2829 195 195 . 441 1962 234 157 792 71 5255 Explosive 11759 | . . . . 2845 . 591 . 1444 2974 424 . . 1070 2411 Electromagnetic . | . . . . . . . . . . . . . . . Impact 978 | . . . . . . . . . 258 . . . . 720 Slashing . | . . . . . . . . . . . . . . . Piercing . | . . . . . . . . . . . . . . . Highest Corruption 14 | . . . . 5 5 5 5 . 2 2 2 2 2 14 Average Corruption 3 | . . . . 3 5 5 5 . 1 2 2 2 2 5 Corruption Purged 13 | . . . . . . . . . 2 . . . . 11 Corruption Blocked . | . . . . . . . . . . . . . . . Effects 127 | . . . . 18 15 11 3 . 5 8 13 11 7 36 Message Errors 22 | . . . . 1 4 . . . . 3 2 1 2 9 Matter Fused 34 | . . . . 10 2 3 2 . 3 1 2 1 3 7 Heat Flow Errors 17 | . . . . 2 2 4 1 . . . 2 1 . 5 Energy Discharges 15 | . . . . . 3 2 . . . 1 1 2 2 4 Parts Fused 1 | . . . . . . . . . . . 1 . . . Data Loss (minor) 18 | . . . . 3 1 1 . . 1 1 2 4 . 5 Data Loss (major) 10 | . . . . . 2 . . . 1 2 1 1 . 3 Misfires 6 | . . . . 1 1 1 . . . . 1 1 . 1 Weapon Failures 4 | . . . . 1 . . . . . . 1 . . 2 Overload Shots . | . . . . . . . . . . . . . . . Overflow Damage 2059 | . . . . 264 62 159 . 86 447 76 . 42 84 839 Projectiles 545 | . . . . 149 62 . . 35 67 29 . 42 . 161 Explosions 930 | . . . . 115 . 159 . 51 122 47 . . 84 352 Melee 584 | . . . . . . . . . 258 . . . . 326 Knockbacks 11 | . . . . . . . . . 1 . . . . 10 Impact 5 | . . . . . . . . . 1 . . . . 4 Kinetic 4 | . . . . . . . . . . . . . . 4 Secondary 2 | . . . . . . . . . . . . . . 2 Self-Inflicted Damage 442 | . . . . 39 . . . 44 . . . . 101 258 Shots 7 | . . . . 1 . . . 1 . . . . 1 4 Rammed 8 | . . . . 1 . . . . . . . . 1 6 Targets Rammed 8 | . . . . 1 . . . . . . . . 1 6 Kicked . | . . . . . . . . . . . . . . . Crushed . | . . . . . . . . . . . . . . . Highest Temperature 374 | . 312 6 . 358 184 213 176 289 360 138 309 374 16 370 Average Temperature 100 | . 83 3 . 115 85 76 93 103 114 43 102 106 10 100 Received Heat Transfer 1836 | . 243 273 . 393 . . . 153 198 12 15 . . 549 Effects 11 | . 1 . . 2 . . . . 1 . 2 2 . 3 Shutdowns 1 | . . . . . . . . . . . . . . 1 Energy Bleed 5 | . 1 . . 2 . . . . 1 . 1 . . . Interference 5 | . . . . . . . . . . . 1 2 . 2 Siege Activations . | . . . . . . . . . . . . . . . Martial Activations . | . . . . . . . . . . . . . . . Shielding Activations . | . . . . . . . . . . . . . . . Robots Disrupted . | . . . . . . . . . . . . . . . Combat Hostiles . | . . . . . . . . . . . . . . . Robots Corrupted 5 | . . . . . . . . . 2 . . . . 3 Combat Hostiles 3 | . . . . . . . . . . . . . . 3 Parts Fried 8 | . . . . . . . . . 2 . . . . 6 Impact Corruptions 15 | . . . . . . . . . 7 . . . . 8 Robots Melted 13 | . . 2 . 5 . . . . 2 . . . . 4 Combat Hostiles 10 | . . 2 . 3 . . . . 2 . . . . 3 Parts Melted 42 | . 10 5 . 4 . . . . 6 . 1 . 1 15 Heat Transferred 18368 | . 3024 1303 . 3369 173 173 . 444 2093 337 187 689 74 6502 Parts Sabotaged 3 | . . . . . . . . . . . . . . 3 Parts Stolen . | . . . . . . . . . . . . . . . Parts Stripped . | . . . . . . . . . . . . . . . Power Chain Reactions . | . . . . . . . . . . . . . . . Alert | -11 -10 -10 -9 -6 -6 -6 -6 -5 -5 -5 -5 -5 -4 -4 ------- Run | Yrd Mat Sub Scr Fac Low Low Zio Pro Fac Upp Upp Zhi Pro Fac Maximum Alert Level 3 | . . . . 2 . . . . 3 . . . . 3 Low Security (%) 47 | 100 100 . . 50 . . . . 7 . . . . 39 Level 1 21 | . . . . 32 . . . . 43 . . . . 9 Level 2 22 | . . . . 17 . . . . 32 . . . . 36 Level 3 8 | . . . . . . . . . 16 . . . . 15 Level 4 . | . . . . . . . . . . . . . . . Level 5 . | . . . . . . . . . . . . . . . High Security . | . . . . . . . . . . . . . . . Max Security . | . . . . . . . . . . . . . . . Peak Influence 972 | . 104 . . 579 . . . . 972 . . . . 811 Initial 559 | . . . . . . . . . 559 . . . . 33 Average 289 | . 19 . . 212 . . . . 473 . . . . 415 Influence Increases 5862 | . 343 90 . 1157 90 269 29 447 1629 115 20 15 225 1433 Destroy 0b10 Robot/C 3080 | . 220 80 . 620 60 180 20 360 520 100 20 . 160 740 Destroy 0b10 Robot/NC 380 | . 45 . . 120 . . . 15 90 5 . 15 . 90 Destroy Leader 590 | . 56 10 . 152 . 20 . 20 130 10 . . 20 172 Allied During Kill 175 | . . . . 30 30 69 9 37 . . . . . . Successful Hack 134 | . 22 . . 52 . . . . 40 . . . . 20 Disable Machine 330 | . . . . 75 . . . . 150 . . . . 105 Destroy Structure 558 | . . . . 108 . . . . 204 . . . . 246 Advance Influence 450 | . . . . . . . . . 450 . . . . . Lose Combat Pursuer 165 | . . . . . . . . 15 45 . . . 45 60 Influence Decreases 5061 | . 343 64 26 587 529 244 185 273 841 683 414 15 171 686 Entered New Map 938 | . . . 26 . 211 26 156 . 65 357 76 . . 21 Time Decay 3522 | . 343 64 . 396 318 198 29 233 556 326 338 15 151 555 Search Patrol Dispatched 200 | . . . . . . . . . 200 . . . . . Lost Part 341 | . . . . 191 . . . . 20 . . . 20 110 Lost Ally 60 | . . . . . . 20 . 40 . . . . . . Squads Dispatched 37 | . 2 . . 12 . . . . 11 . . . . 12 Investigation 8 | . . . . 3 . . . . 1 . . . . 4 Extermination 10 | . . . . 4 . . . . 3 . . . . 3 Reinforcement 12 | . 2 . . 5 . . . . 3 . . . . 2 Assault 4 | . . . . . . . . . 1 . . . . 3 Garrison 3 | . . . . . . . . . 3 . . . . . Intercept . | . . . . . . . . . . . . . . . Searches Triggered 2 | . . . . . . . . . 2 . . . . . Construction Impeded 3 | . . . . 1 . . . . 1 . . . . 1 Haulers Reinforced 3 | . . . . 1 . . . . 2 . . . . . Active Scanning Responses . | . . . . . . . . . . . . . . . Cargo Convoy Interrupts 1 | . . . . 1 . . . . . . . . . . Stealth | -11 -10 -10 -9 -6 -6 -6 -6 -5 -5 -5 -5 -5 -4 -4 --------- Run | Yrd Mat Sub Scr Fac Low Low Zio Pro Fac Upp Upp Zhi Pro Fac Distress Signals 7 | . 1 . . . . . . . 1 . . . . 5 Communications Jammed 33 | . . . . 17 . . . . 9 . . . . 7 Distress Signals 26 | . . . . 17 . . . . 9 . . . . . Times Spotted 237 | . 26 21 . 44 2 8 1 16 41 5 6 . 10 57 Peak Tracking Total 11 | . 3 6 . 11 3 4 1 6 5 4 5 . 5 9 Tactical Retreats 9 | . . . . . . . . 1 2 . . . 3 3 Traps | -11 -10 -10 -9 -6 -6 -6 -6 -5 -5 -5 -5 -5 -4 -4 ------- Run | Yrd Mat Sub Scr Fac Low Low Zio Pro Fac Upp Upp Zhi Pro Fac Traps Triggered 5 | . 3 . . . . . . . . . . . . 2 Indirectly . | . . . . . . . . . . . . . . . Trap Hack Attempts . | . . . . . . . . . . . . . . . Triggered . | . . . . . . . . . . . . . . . Disarmed . | . . . . . . . . . . . . . . . Reprogrammed . | . . . . . . . . . . . . . . . Reused 1 | . . 1 . . . . . . . . . . . . Traps Extracted . | . . . . . . . . . . . . . . . Installed 1 | . . 1 . . . . . . . . . . . . Triggered . | . . . . . . . . . . . . . . . Most Traps Carried 1 | . . 1 1 . . . . . . . . . . . Machines | -11 -10 -10 -9 -6 -6 -6 -6 -5 -5 -5 -5 -5 -4 -4 ---------- Run | Yrd Mat Sub Scr Fac Low Low Zio Pro Fac Upp Upp Zhi Pro Fac Machines Disabled 31 | . . 2 . 5 . . 1 4 10 . . 2 . 7 Max in Single Turn 6 | . . 1 . 1 . . . 2 6 . . 1 . 2 Garrison Access 1 | . . . . . . . . . . . . . . 1 Machines Repaired . | . . . . . . . . . . . . . . . Machines Dismantled . | . . . . . . . . . . . . . . . Machines Sabotaged . | . . . . . . . . . . . . . . . Overloaded Fab Kills . | . . . . . . . . . . . . . . . Hacking | -11 -10 -10 -9 -6 -6 -6 -6 -5 -5 -5 -5 -5 -4 -4 --------- Run | Yrd Mat Sub Scr Fac Low Low Zio Pro Fac Upp Upp Zhi Pro Fac Machines Accessed 32 | . 5 2 2 6 . 1 . . 7 . . 4 . 5 Terminals 8 | . 4 . . 1 . . . . 1 . . . . 2 Fabricators 7 | . . . . 4 . . . . 2 . . . . 1 Repair Stations 4 | . 1 . . . . . . . 2 . . . . 1 Recycling Units 1 | . . . . . . . . . 1 . . . . . Scanalyzers 2 | . . . . 1 . . . . 1 . . . . . Garrison Access 1 | . . . . . . . . . . . . . . 1 Total Hacks 121 | . 18 6 25 19 . 1 . . 18 . . 17 . 17 Successful 86 | . 8 6 25 10 . 1 . . 11 . . 17 . 8 Failed 34 | . 9 . . 9 . . . . 7 . . . . 9 Catastrophic 5 | . 1 . . . . . . . 1 . . . . 3 Database Lockouts 1 | . 1 . . . . . . . . . . . . . Manual 21 | . 12 . . 5 . . . . 2 . . . . 2 Terminals 32 | . 16 . . 5 . . . . 3 . . . . 8 Fabricators 21 | . . . . 13 . . . . 4 . . . . 4 Repair Stations 11 | . 2 . . . . . . . 5 . . . . 4 Recycling Units 2 | . . . . . . . . . 2 . . . . . Scanalyzers 5 | . . . . 1 . . . . 4 . . . . . Garrison Access 1 | . . . . . . . . . . . . . . 1 Terminal Hacks 57 | . 5 6 25 1 . 1 . . 1 . . 17 . 1 Record 35 | . . 5 25 . . . . . . . . 5 . . Part Schematic 6 | . 1 . . 1 . . . . . . . 4 . . Robot Analysis 6 | . 2 . . . . . . . . . . 4 . . Prototype ID Bank 5 | . 1 . . . . . . . . . . 4 . . Open Door 1 | . . . . . . 1 . . . . . . . . Terminal Index 1 | . . . . . . . . . . . . . . 1 Alert Level 1 | . . . . . . . . . 1 . . . . . Zone Layout 1 | . 1 . . . . . . . . . . . . . Proto ID Catalog 1 | . . 1 . . . . . . . . . . . . Fabricator Hacks 11 | . . . . 7 . . . . 2 . . . . 2 Load Schematic 5 | . . . . 3 . . . . 1 . . . . 1 Build 6 | . . . . 4 . . . . 1 . . . . 1 Repair Station Hacks 9 | . 2 . . . . . . . 4 . . . . 3 Scan Component 5 | . 1 . . . . . . . 2 . . . . 2 Repair 4 | . 1 . . . . . . . 2 . . . . 1 Recycling Unit Hacks . | . . . . . . . . . . . . . . . Scanalyzer 3 | . . . . . . . . . 3 . . . . . Insert Component 1 | . . . . . . . . . 1 . . . . . Analyze 2 | . . . . . . . . . 2 . . . . . Garrison Access Hacks 1 | . . . . . . . . . . . . . . 1 Seal Access 1 | . . . . . . . . . . . . . . 1 Unauthorized Hacks 5 | . 1 . . 2 . . . . 1 . . . . 1 Terminals 3 | . 1 . . 1 . . . . 1 . . . . . Assimilate 1 | . 1 . . . . . . . . . . . . . Botnet 2 | . . . . 1 . . . . 1 . . . . . Fabricators 2 | . . . . 1 . . . . . . . . . 1 Prioritize 2 | . . . . 1 . . . . . . . . . 1 Repair Stations . | . . . . . . . . . . . . . . . Recycling Units . | . . . . . . . . . . . . . . . Scanalyzers . | . . . . . . . . . . . . . . . Garrison Access . | . . . . . . . . . . . . . . . Data Cores Recovered . | . . . . . . . . . . . . . . . Used . | . . . . . . . . . . . . . . . Hacking Detections 20 | . 3 . . 6 . . . . 7 . . . . 4 Full Trace Events 7 | . . . . 3 . . . . 1 . . . . 3 Feedback Events 1 | . . . . 1 . . . . . . . . . . Corruption 1 | . . . . 1 . . . . . . . . . . Feedback Blocked . | . . . . . . . . . . . . . . . Robot Schematics Acquired . | . . . . . . . . . . . . . . . Robots Built . | . . . . . . . . . . . . . . . Authchips . | . . . . . . . . . . . . . . . Time . | . . . . . . . . . . . . . . . Total Robot Build Rating . | . . . . . . . . . . . . . . . Part Schematics Acquired 7 | . 1 . . 1 . . . . 1 . . 4 . . Parts Built 10 | . . . . 8 . . . . . . . . . 2 Authchips . | . . . . . . . . . . . . . . . Time 408 | . . . . 286 . . . . 58 . . . . 64 Total Part Build Rating 76 | . . . . 60 . . . . . . . . . 16 Part Studies Acquired . | . . . . . . . . . . . . . . . Parts Repaired 4 | . 1 . . . . . . . 2 . . . . 1 Time 203 | . 26 . . . . . . . 143 . . . . 34 Parts Recycled . | . . . . . . . . . . . . . . . Recycled Matter . | . . . . . . . . . . . . . . . Retrieved Matter . | . . . . . . . . . . . . . . . Retrieved Components . | . . . . . . . . . . . . . . . Parts Scanalyzed 1 | . . . . . . . . . 1 . . . . . Part Schematics Acquired 1 | . . . . . . . . . 1 . . . . . Parts Damaged . | . . . . . . . . . . . . . . . Bothacking | -11 -10 -10 -9 -6 -6 -6 -6 -5 -5 -5 -5 -5 -4 -4 ------------ Run | Yrd Mat Sub Scr Fac Low Low Zio Pro Fac Upp Upp Zhi Pro Fac Used RIF Installer . | . . . . . . . . . . . . . . . Robots Hacked 3 | . . . 3 . . . . . . . . . . . Non-combat . | . . . . . . . . . . . . . . . Combat 3 | . . . 3 . . . . . . . . . . . Robot Hacks Applied 3 | . . . 3 . . . . . . . . . . . parse_system 3 | . . . 3 . . . . . . . . . . . Relay Couplers Released . | . . . . . . . . . . . . . . . Fabnet Peak Effective % . | . . . . . . . . . . . . . . . Robots Rewired . | . . . . . . . . . . . . . . . Allies Hacked . | . . . . . . . . . . . . . . . Hacks Repelled . | . . . . . . . . . . . . . . . Allies | -11 -10 -10 -9 -6 -6 -6 -6 -5 -5 -5 -5 -5 -4 -4 -------- Run | Yrd Mat Sub Scr Fac Low Low Zio Pro Fac Upp Upp Zhi Pro Fac Total Allies 9 | . 1 . . 5 . . 3 . . . . . . . Largest Group 6 | . 1 . . 5 5 4 6 5 . . . . . . Highest-Rated Group 238 | . 10 . . 238 235 182 210 163 . . . . . . Highest-Rated Ally 50 | . 10 . . 50 47 47 47 47 . . . . . . Total Orders 3 | . . . . . . . . . 2 . . . . 1 RETURN 3 | . . . . . . . . . 2 . . . . 1 Ally Attacks 124 | . . . . 29 20 31 13 31 . . . . . . Total Damage 2306 | . . . . 625 375 502 279 525 . . . . . . Kills 15 | . . . . 2 3 3 2 5 . . . . . . Allies Corrupted . | . . . . . . . . . . . . . . . Allies Melted . | . . . . . . . . . . . . . . . Intel | -11 -10 -10 -9 -6 -6 -6 -6 -5 -5 -5 -5 -5 -4 -4 ------- Run | Yrd Mat Sub Scr Fac Low Low Zio Pro Fac Upp Upp Zhi Pro Fac Active Infowar (turns) 12716 | . . . 1583 1486 717 413 1370 543 1626 723 888 904 599 1864 Optics 10354 | . . . . 707 717 413 1370 543 1626 723 888 904 599 1864 Sensors 6374 | . . . . . 589 413 1370 347 1161 693 780 . 595 426 Terrain 3670 | . . . . 26 21 400 1370 347 728 . 778 . . . Structural 2010 | . . . 404 530 . . . . . . . . 562 514 Traps 1692 | . . . 1179 513 . . . . . . . . . . Jamming 919 | . . . . 463 . . . . 183 . . . . 273 Robot Analysis Total 6 | . 2 . . . . . . . . . . 4 . . Derelict Logs Recovered 8 | . . 1 4 . . 2 1 . . . . . . . Drone Launches 3 | . . . . . . . . . 2 . . . . 1 Drone Recoveries 3 | . . . . . . . . . 2 . . . . 1 Exploration | -11 -10 -10 -9 -6 -6 -6 -6 -5 -5 -5 -5 -5 -4 -4 ------------- Run | Yrd Mat Sub Scr Fac Low Low Zio Pro Fac Upp Upp Zhi Pro Fac Turns Passed 20455 | 70 1415 4525 3118 1680 717 413 1370 543 1626 723 888 904 599 1864 Spaces Moved 10680 | 41 618 2198 2406 751 430 243 819 289 735 339 341 513 258 699 Core 234 | 4 . . 230 . . . . . . . . . . . Treads 6778 | 37 618 1189 . 284 430 243 803 289 735 339 341 513 258 699 Legs . | . . . . . . . . . . . . . . . Wheels 3031 | . . 1009 1539 467 . . 16 . . . . . . . Hover . | . . . . . . . . . . . . . . . Flight 637 | . . . 637 . . . . . . . . . . . Fastest Speed 32 | 50 160 110 32 135 164 164 120 164 154 156 161 158 158 148 Average Speed 157 | 149 180 149 124 160 164 164 165 164 159 201 228 159 216 168 Slowest Speed 1450 | 160 320 320 1450 246 164 164 243 164 236 241 241 161 241 241 Overloaded Moves . | . . . . . . . . . . . . . . . Propulsion Burnouts . | . . . . . . . . . . . . . . . Robots Hopped 2 | . . . 2 . . . . . . . . . . . Potential Cave-ins . | . . . . . . . . . . . . . . . Cave-ins Triggered . | . . . . . . . . . . . . . . . Exploration Rate (%) 58 | 3 98 93 86 22 71 54 79 56 29 64 74 90 46 17 Regions Visited 14 Branch Regions 10 Pre-discovered Areas 15 | . . 1 8 . . . 3 . . . . 3 . . Known Exits Taken 10 | . . . . 1 1 1 1 1 1 1 1 1 1 . Unknown Exits Taken 4 | 1 1 1 1 . . . . . . . . . . . Scrap Searched 22 | . . . 10 . 1 . 2 1 . 3 . . 5 . Spaces Dug 128 | . . . . 52 . 32 . 26 10 . 6 . . 2 Terrain Destroyed 694 | . . 3 . 116 4 33 . 125 115 28 10 10 108 142 Melee . | . . . . . . . . . . . . . . . Projectile 128 | . . 3 . 12 4 1 . 12 28 5 10 10 . 43 AOE 566 | . . . . 104 . 32 . 113 87 23 . . 108 99 Terrain Rammed . | . . . . . . . . . . . . . . . Walls Destroyed . | . . . . . . . . . . . . . . . Machines Disabled . | . . . . . . . . . . . . . . . Actions | -11 -10 -10 -9 -6 -6 -6 -6 -5 -5 -5 -5 -5 -4 -4 --------- Run | Yrd Mat Sub Scr Fac Low Low Zio Pro Fac Upp Upp Zhi Pro Fac Total 13437 | 47 773 3310 2546 1053 435 251 837 328 1070 363 435 568 288 1133 Wait 1505 | . 28 964 . 65 1 3 . 17 178 3 81 18 15 132 Move 10663 | 40 617 2197 2402 750 429 242 818 288 734 338 340 512 257 699 Hop 1 | . . . 1 . . . . . . . . . . . Pick Up 212 | 1 17 31 73 36 . . 5 . 19 1 2 6 1 20 Fast Attach 88 | 6 6 6 18 11 . . 4 . 4 . . 4 . 29 Attach 79 | . 1 7 4 32 . . 1 . 11 . 2 3 . 18 Detach 13 | . . . 1 4 . . . . . . . . . 8 Swap 141 | . 12 3 2 36 1 1 . . 26 9 1 . 5 45 Drop 153 | . 13 17 42 16 . . 9 . 15 2 2 7 2 28 Fire 540 | . 79 82 . 102 4 5 . 23 71 10 7 18 7 132 Melee 31 | . . . 3 . . . . . 12 . . . . 16 Ram . | . . . . . . . . . . . . . . . Kick . | . . . . . . . . . . . . . . . Crush 8 | . . . . 1 . . . . . . . . 1 6 Escape Stasis . | . . . . . . . . . . . . . . . Rewire . | . . . . . . . . . . . . . . . Trap 1 | . . 1 . . . . . . . . . . . . Miscellaneous 2 | . . 2 . . . . . . . . . . . . Route ------- -11/Scrapyard -10/Materials (discovered 5 exits: [*Mat x3] / [*Min] / *Sub) -10/Subcaves (discovered 4 exits: [*Mat x2] / [*Rec] / *Scr) -9/Scraptown (discovered 2 exits: *Fac x2) -6/Factory (discovered 4 exits: Fac / *Low x2 / [*Ext]) -6/Lower Caves -6/Lower Caves (discovered 2 exits: *Fac / *Zio) -6/Zion -5/Proximity Caves -5/Factory (discovered 6 exits: *Fac x4 / *Upp x2) -5/Upper Caves -5/Upper Caves (discovered 2 exits: Fac / *Zhi) -5/Zhirov -4/Proximity Caves -4/Factory (discovered 3 exits: Res x3) History --------- Turn | Location | Event 11 | -11/Scrapyard | Discovered new exit (range 14) 71 | -11/Scrapyard | Entered Materials 320 | -10/Materials | Build established: Mutant 338 | -10/Materials | Discovered new exit (range 9) 474 | -10/Materials | Central database locked down 525 | -10/Materials | Discovered new exit (range 15) 1029 | -10/Materials | Discovered new exit (range 15) 1085 | -10/Materials | Repaired Ion Engine? 1372 | -10/Materials | Discovered new exit (range 16) 1454 | -10/Materials | Discovered new exit (range 13) 1486 | -10/Materials | Entered Subcaves 1487 | -10/Subcaves | Approached by a straggling Scientist 1591 | -10/Subcaves | A Subdweller sparked back to life 1591 | -10/Subcaves | A Subdweller sparked back to life 1637 | -10/Subcaves | Found Prototype Power Core 1676 | -10/Subcaves | Discovered new exit (range 13) 1998 | -10/Subcaves | Build established: Scavenger-Mutant 2108 | -10/Subcaves | Core integrity fell below 50% 2152 | -10/Subcaves | Lost 3 parts (1p1u1w) 2192 | -10/Subcaves | A swath of the cavern ceiling suddenly collapsed 2472 | -10/Subcaves | Build established: Subdweller-Mutant 2509 | -10/Subcaves | Visited 4L-MR0's lab 2977 | -10/Subcaves | Ambushed by angry Subdweller bent on revenge 3107 | -10/Subcaves | Discovered new exit (range 13) 4452 | -10/Subcaves | Visited Clippyterm 4457 | -10/Subcaves | Learned location of Section 7 (-2) 4478 | -10/Subcaves | Discovered new exit (range 10) 4496 | -10/Subcaves | Ambushed by angry Subdweller bent on revenge 4503 | -10/Subcaves | Ambushed by Subdweller buried in earth 4605 | -10/Subcaves | Shifting Twisted Machinery released Piercing Trap 4608 | -10/Subcaves | Shifting Twisted Machinery released Sub. Power Source 4632 | -10/Subcaves | Shifting Twisted Machinery released Sub. Monowheel 4800 | -10/Subcaves | Build established: Scavenger-Mutant 4977 | -10/Subcaves | Core integrity fell below 20% 5923 | -10/Subcaves | Found Rainbow Chip 6011 | -10/Subcaves | Entered Scraptown 6140 | -9/Scraptown | Learned location of Extension (-6) 6292 | -9/Scraptown | Heard Great Nut preacher, LISTEN AND RECITE! 6331 | -9/Scraptown | Discovered new exit (range 9) 6398 | -9/Scraptown | Scanned Subdweller tech in exchange for log data 6401 | -9/Scraptown | Learned location of Testing (-3) 6402 | -9/Scraptown | Learned Factory security intel 6404 | -9/Scraptown | Learned location of Quarantine (-2) 6449 | -9/Scraptown | Visited Awakened 6466 | -9/Scraptown | Visited Bundlers 6540 | -9/Scraptown | Build established: Mutant 6602 | -9/Scraptown | Visited Spacefarers 6870 | -9/Scraptown | Visited Cave Peace 6921 | -9/Scraptown | Visited IN-MT5's Study 6957 | -9/Scraptown | Visited Shadow of the Wyrm 7030 | -9/Scraptown | Visited UFD Registry 7030 | -9/Scraptown | Registered with UFD as "Shortfunk" 7070 | -9/Scraptown | Visited Abandonware Association 7088 | -9/Scraptown | Learned abandonware demo "ERRANTS.EXE" 7088 | -9/Scraptown | Learned abandonware demo "REVENGE.EXE" 7146 | -9/Scraptown | Visited Observation Area 7164 | -9/Scraptown | Visited A0-MCA Data Center 7198 | -9/Scraptown | Visited DA-N13 Charitable Foundation 7204 | -9/Scraptown | Found DCF Scrap (26 items) 7246 | -9/Scraptown | Visited Science Testing Area 7263 | -9/Scraptown | Visited Junk Repository 7446 | -9/Scraptown | Visited Research Penetration Think Tank 7482 | -9/Scraptown | Visited Scrapoid Pod Storage 7514 | -9/Scraptown | Visited Cartography Club 7637 | -9/Scraptown | Found Surveybot 17 Chip 7721 | -9/Scraptown | Found Deep Structural Scanner 7727 | -9/Scraptown | Learned location of Storage (-9) 7727 | -9/Scraptown | Learned location of 3 exits from Proximity Caves 7727 | -9/Scraptown | Learned 4 Hub_04(d) zone layouts 7727 | -9/Scraptown | Learned location of 1 exit from Research 7727 | -9/Scraptown | Learned 4 Storage zone layouts 7727 | -9/Scraptown | Learned location of Armory (-3) 7727 | -9/Scraptown | Learned 12 Materials zone layouts 7727 | -9/Scraptown | Learned 16 Research zone layouts 7727 | -9/Scraptown | Learned 8 Access zone layouts 7727 | -9/Scraptown | Learned location of Upper Caves (-5) 7727 | -9/Scraptown | Learned 12 Lower Caves zone layouts 7727 | -9/Scraptown | Learned 20 Upper Caves zone layouts 7727 | -9/Scraptown | Learned 8 Proximity Caves zone layouts 7727 | -9/Scraptown | Learned 16 Proximity Caves zone layouts 7727 | -9/Scraptown | Learned 8 Factory zone layouts 8376 | -9/Scraptown | Given an A rating by A0-MCA 8379 | -9/Scraptown | Found A0-MCA's Component Scanner 8548 | -9/Scraptown | Visited Artisan Demo Area 8947 | -9/Scraptown | Found Scrapoid Pod 9122 | -9/Scraptown | Discovered new exit (range 3) 9129 | -9/Scraptown | Entered Factory 9129 | -6/Factory | Evolved 8 slots: Propulsion x2, Utility x6 9130 | -6/Factory | Identified exit to Lower Caves 9131 | -6/Factory | Identified exit to Factory 9357 | -6/Factory | Fabricated Matter Neutralizer (x2) 9934 | -6/Factory | Lost 10 parts (1p3n4u2w) 10051 | -6/Factory | Cargo convoy interrupted 10074 | -6/Factory | Attached Meta Core, gained temporary slots: Propulsion, Utility, Weapon 10085 | -6/Factory | Destroyed 8 combat bots 10108 | -6/Factory | Found Hellfire Missile Launcher 10145 | -6/Factory | Found Hellfire Missile Launcher 10147 | -6/Factory | Lost 8 parts (1p3n4u) 10147 | -6/Factory | Found Hellfire Missile Launcher 10175 | -6/Factory | Build established: Scavenger-Mutant 10200 | -6/Factory | Discovered new exit (range 21) 10273 | -6/Factory | Fabricated Lgt. Particle Reactor? 10364 | -6/Factory | Fabricated Matter Neutralizer (x2) 10598 | -6/Factory | Found Launcher Loader 10611 | -6/Factory | Fabricated Biometal Medium Treads (x2) 10672 | -6/Factory | Build established: Scavenger-Gunner 10724 | -6/Factory | Scrapoid Pod released 06F05-D (x5) 10809 | -6/Factory | Entered Lower Caves 10809 | -6/Lower Caves | Accompanied by 5 allies 10810 | -6/Lower Caves | Encountered a Warlord checkpoint 10810 | -6/Lower Caves | Identified exit to Lower Caves 10811 | -6/Lower Caves | Attracted the attention of an 0b10 checkpoint 10977 | -6/Lower Caves | Build established: Scavenger-Skirmisher 11526 | -6/Lower Caves | Entered another Lower Caves area 11526 | -6/Lower Caves | Accompanied by 4 allies 11617 | -6/Lower Caves | Discovered exit to Factory (range 20) 11789 | -6/Lower Caves | Encountered a Warlord checkpoint 11853 | -6/Lower Caves | Discovered new exit (range 19) 11872 | -6/Lower Caves | Learned Factory emergency access door positions 11886 | -6/Lower Caves | Learned Factory stockpile data 11932 | -6/Lower Caves | Identified exit to Zion 11939 | -6/Lower Caves | Entered Zion 11939 | -6/Zion | Accompanied by 3 allies 12006 | -6/Zion | System corruption cleaned by Quarantine Array 12071 | -6/Zion | Learned location of Warlord (-4) 12160 | -6/Zion | Discovered new exit (range 18) 12275 | -6/Zion | Learned Factory trap positions 12509 | -6/Zion | Received a visual enhancement algorithm 12732 | -6/Zion | Learned Factory emergency access door positions 12754 | -6/Zion | Gained Derelict followers 12962 | -6/Zion | Given the Hacking Drone Bay 12962 | -6/Zion | Found Prototype Device 12963 | -6/Zion | Identified Hacking Drone Bay 13298 | -6/Zion | Identified exit to Proximity Caves 13309 | -6/Zion | Entered Proximity Caves 13309 | -5/Proximity Caves | Accompanied by 5 allies 13415 | -5/Proximity Caves | Spotter reported a threat 13468 | -5/Proximity Caves | Spotter reported a threat 13508 | -5/Proximity Caves | Attracted the attention of an 0b10 base 13534 | -5/Proximity Caves | Spotter reported a threat 13542 | -5/Proximity Caves | Lost 4 allies 13852 | -5/Proximity Caves | Entered Factory 13852 | -5/Factory | Evolved 2 slots: Power x1, Utility x1 13853 | -5/Factory | Identified exit to Upper Caves 13853 | -5/Factory | Attached Rainbow Chip, gained temporary slots: Power, Propulsion, Utility, Weapon 13854 | -5/Factory | Loaded intel: 69 trap records 14152 | -5/Factory | Search patrols dispatched 14158 | -5/Factory | Discovered new exit (range 19) 14163 | -5/Factory | Build established: Scavenger-Assassin 14204 | -5/Factory | Identified exit to Factory 14452 | -5/Factory | Search patrols dispatched 14465 | -5/Factory | Repaired Med. Treads 15211 | -5/Factory | Garrison activated, responded to threat 15352 | -5/Factory | First assault squad dispatched 15464 | -5/Factory | Repaired Enh. Armored Medium Treads 15478 | -5/Factory | Entered Upper Caves 15479 | -5/Upper Caves | Identified exit to Upper Caves 16201 | -5/Upper Caves | Entered another Upper Caves area 16212 | -5/Upper Caves | Discovered exit to Factory (range 19) 16990 | -5/Upper Caves | Attracted the attention of an 0b10 checkpoint 17068 | -5/Upper Caves | Discovered new exit (range 13) 17079 | -5/Upper Caves | Spotted B-75 Beast 17087 | -5/Upper Caves | Identified exit to Zhirov 17089 | -5/Upper Caves | Entered Zhirov 17089 | -5/Zhirov | Discovered new exit (range 3) 17158 | -5/Zhirov | Learned location of Command (-1) 17206 | -5/Zhirov | Found Alien Artifact 17206 | -5/Zhirov | Identified Integrated Reactor 17206 | -5/Zhirov | Installed Integrated Reactor, increased core energy generation (+10) 17277 | -5/Zhirov | Build established: Scavenger-Mutant 17481 | -5/Zhirov | Found Alien Artifact 17541 | -5/Zhirov | Cloak Generator disabled 17551 | -5/Zhirov | Enhanced Grunts warped into view 17602 | -5/Zhirov | Lost 8 allies 17768 | -5/Zhirov | Identified exit to Proximity Caves 17868 | -5/Zhirov | Build established: Mutant 17993 | -5/Zhirov | Entered Proximity Caves 18207 | -4/Proximity Caves | Spotted B-86 Titan 18290 | -4/Proximity Caves | Build established: Assassin 18592 | -4/Proximity Caves | Entered Factory 18592 | -4/Factory | Evolved 2 slots: Propulsion x2 18593 | -4/Factory | Identified exit to Research 18827 | -4/Factory | Fabricated Biometal Medium Treads? 19110 | -4/Factory | Build established: Mutant 19254 | -4/Factory | Repaired Biometal Medium Treads 19427 | -4/Factory | Destroyed 7 combat bots 19436 | -4/Factory | Lost 5 parts (1n2u2w) 19842 | -4/Factory | First assault squad dispatched 19851 | -4/Factory | Build established: Scavenger-Mutant 20443 | -4/Factory | Found Prototype Hackware 20443 | -4/Factory | Identified Exp. Hacking Suite 20452 | -4/Factory | System corruption reached 10% 20456 | -4/Factory | Self-destructed Last Messages --------------- 20451_ Adv. Thermal Shield destroyed. 20451_ Destroyed Adv. Thermal Shield. 20451_ Destroyed Lgt. Ion Engine. 20451_ E-15 Imp destroyed. 20451_ Manufacturing Mainframe disabled. 20452_ The unstable cave ceiling collapses. 20452_ C-45 Heavy ARC bursts open, deploying its payload. 20452_ G-73 Enforcer unfolds itself. 20452_ L-61 Swordsman unfolds itself. 20452_ G-67 Veteran unfolds itself. 20452_ E-15 Imp unfolds itself. 20453_ Imp. Medium Armor Plating destroyed. 20454_ System corrupted: Matter fused (-9). 20454_ The unstable cave ceiling collapses. 20454_ Antimatter Reactor blown off. 20454_ Arm. Medium Treads blown off. 20454_ Adv. Heat Sink blown off. 20454_ E-15 Imp destroyed. 20454_ Acquired Antimatter Reactor. 20454_ U-05 Engineer builds a Wall. Map ----- +----------------------------------------------------+ | ?????????????????+???????????????????????????????? | | ?????????????????????????????????????????????????? | | ?????????????????????????????????????????????????? | | ?????????????????????????????????????????????????? | | ?????????????????????? ??????????????????????????? | | ?????????????????????? ??????????????????????????? | | ?????????????????????? ??????????????+???????????? | | ?????????????????????? ??????????????????????????? | | ?????????????????????? ??????????????????????????? | | ?????????????????????? ??????????????????????????? | | ?????????????????????? ??????????????????????????? | | ?????????????????????? ?###??????????????????????? | | ???????????????#####?### ??????????????????????? | | ???????????????? ??????????????????????? | | ???????????????? ??????????????????????? | | ???????????? /